{"text_format":"1","workbook":"xlsx","n_sheets":5,"sheets":["メイン画面","分析シート","課題把握シート_訪問入浴介護","集計データシート","平均点"],"not_rendered":{"charts":1,"images":3,"macros":1,"external_links":0,"defined_names":4,"comments":0,"pivot_tables":2},"unopened":[],"bounds":{"document_bytes":16777216,"sheet_cells":100000,"rows_first":2000,"rows_last":500,"rows_between":2000,"halvings":0,"cell_chars":16384,"cell_head_chars":4096},"cells_cut":0,"cells_raw":0,"read":"whole","date_system":"1900"}

{"sheet":"メイン画面","index":0,"n_rows":47,"n_cols":15,"rows_kept":47,"cut":false,"hidden":false,"merged":[[2,14,2,23],[18,1,18,12],[19,1,21,12],[25,1,25,12],[26,1,28,12],[0,1,0,12],[37,1,37,12],[38,1,40,12],[2,1,2,12],[3,1,5,12]]}
[null,"本ツールは、Microsoft Excel 2013、2016、2019 を稼働対象とします。\n（Microsoft Excel 2013より以前のバージョンは、Microsoftサポート終了のため、セキュリティリスクの観点より稼働対象外）"]
[]
[null,"1.職員用ファイルの作成",null,null,null,null,null,null,null,null,null,null,null,null,"ボタンが動かない場合はこちらをご確認ください"]
[null,"職員が記入するための課題把握シートを作成します。記録対象となる職員の人数を設定してください。\n設定後、「職員用ファイルの作成」ボタンを押下することで、人数分のExcelファイルを作成します。"]
[null,null,null,null,null,null,null,null,null,null,null,null,null,null,"　　ボタンをクリックしたときに以下のようなメッセージが表示され機能が動作しない場合は、マクロの有効化が必要です"]
[]
[]
[null,"記録対象職員人数",null,null,null,"名"]
[]
[]
[]
[]
[null,null,"本ボタンで職員用ファイルを作成します。",null,null,null,null,null,null,null,null,null,null,null,"　　・ファイルを開いたときに以下のようなメッセージが表示された場合は、「マクロを有効にする」をクリックしてください"]
[null,null,"職員用ファイルを開いた状態で、本ボタンを押下するとエラーとなりますので、ご注意ください。"]
[]
[]
[]
[]
[null,"2.職員用ファイルへの入力"]
[null,"1.職員用ファイルで作成されたExcelファイルに対し、課題への対応状況を記録してください。"]
[]
[]
[]
[]
[]
[null,"3.職員用ファイルの読込"]
[null,"2.職員用ファイルへの入力で入力された課題への対応状況からグラフを作成します。職員用ファイルを1つのフォルダに格納後、「職員用ファイルの読込」ボタンを押下し、該当のフォルダを指定してください。"]
[]
[]
[]
[null,null,null,null,null,null,null,null,null,null,null,null,null,null,"　　・画面上部に以下のようなメッセージが表示されている場合は、「コンテンツの有効化」をクリックしてください"]
[]
[]
[]
[]
[]
[]
[null,"4.グラフの作成"]
[null,"3.職員用ファイルの読込で読み込んだデータからグラフを作成します。「グラフの作成」ボタンを押下してください。"]
[]
[]
[]
[]
[]
[]
[null,null,"グラフ作成後に表示倍率を変更すると「平均値」の表示がずれる場合があります。"]
[null,null,"その際には本画面に戻り、再度「グラフの作成」ボタンを押下してください。"]

{"sheet":"分析シート","index":1,"n_rows":124,"n_cols":11,"rows_kept":124,"cut":false,"hidden":false,"merged":[[0,1,0,9],[1,1,1,9]]}
[null,"訪問入浴介護"]
[]
[]
[null,null,null,null,null,null,null,null,null,null,"平均値"]
[]
[null,null,null,null,null,null,null,null,null,null,1.6666666666666667]
[]
[null,null,null,null,null,null,null,null,null,null,1.6666666666666667]
[]
[null,null,null,null,null,null,null,null,null,null,1]
[]
[null,null,null,null,null,null,null,null,null,null,1.6666666666666667]
[]
[null,null,null,null,null,null,null,null,null,null,0.66666666666666663]
[]
[null,null,null,null,null,null,null,null,null,null,2.6666666666666665]
[]
[null,null,null,null,null,null,null,null,null,null,1.3333333333333333]
[]
[null,null,null,null,null,null,null,null,null,null,0.66666666666666663]
[]
[null,null,null,null,null,null,null,null,null,null,1]
[]
[null,null,null,null,null,null,null,null,null,null,1.3333333333333333]
[]
[null,null,null,null,null,null,null,null,null,null,1]
[]
[null,null,null,null,null,null,null,null,null,null,2]
[]
[null,null,null,null,null,null,null,null,null,null,0]
[]
[null,null,null,null,null,null,null,null,null,null,1.3333333333333333]
[]
[null,null,null,null,null,null,null,null,null,null,1.3333333333333333]
[]
[null,null,null,null,null,null,null,null,null,null,2.3333333333333335]
[]
[null,null,null,null,null,null,null,null,null,null,1.6666666666666667]
[]
[null,null,null,null,null,null,null,null,null,null,1.6666666666666667]
[]
[null,null,null,null,null,null,null,null,null,null,1.6666666666666667]
[]
[null,null,null,null,null,null,null,null,null,null,1.3333333333333333]
[]
[null,null,null,null,null,null,null,null,null,null,0.33333333333333331]
[]
[null,null,null,null,null,null,null,null,null,null,1.3333333333333333]
[]
[null,null,null,null,null,null,null,null,null,null,2]
[]
[null,null,null,null,null,null,null,null,null,null,1]
[]
[null,null,null,null,null,null,null,null,null,null,2]
[]
[null,null,null,null,null,null,null,null,null,null,2.6666666666666665]
[]
[null,null,null,null,null,null,null,null,null,null,1]
[]
[null,null,null,null,null,null,null,null,null,null,1.6666666666666667]
[]
[null,null,null,null,null,null,null,null,null,null,1]
[]
[null,null,null,null,null,null,null,null,null,null,0.66666666666666663]
[]
[null,null,null,null,null,null,null,null,null,null,2]
[]
[null,null,null,null,null,null,null,null,null,null,2]
[]
[null,null,null,null,null,null,null,null,null,null,2]
[]
[null,null,null,null,null,null,null,null,null,null,3]
[]
[null,null,null,null,null,null,null,null,null,null,3]
[]
[null,null,null,null,null,null,null,null,null,null,0]
[]
[null,null,null,null,null,null,null,null,null,null,1.6666666666666667]
[]
[]
[]
[]
[]
[]
[null,"データの個数 / 点数",null,null,"点数"]
[null,"大項目","小項目","課題把握の視点","していない（0点）","あまりしていない（1点）","ややしている（2点）","している（3点）","総計"]
[null,"サービス提供","訪問・ケア準備","ケアに必要な利用者情報（基本情報・ケア計画・利用者の状況等）を把握した上で、利用者宅を訪問しているか",1,null,1,1,3]
[null,null,null,"一日の訪問/スケジュールを把握し、事業所を出発しているか",1,null,1,1,3]
[null,null,null,"入浴車への備品の積み込みや後片付けについて、チームで協力して（あるいは、役割を明確にして）実施しているか",2,null,null,1,3]
[null,null,"移動・訪問スケジュール作成","訪問スケジュールを速やかに作成しているか",null,1,2,null,3]
[null,null,null,"事業所では効率的な訪問ルート作成の方法・コツを共有しているか",2,null,1,null,3]
[null,null,null,"訪問・移動に非効率が生じないよう、適切な訪問ルートを設計しているか",null,null,1,2,3]
[null,null,null,"急な訪問スケジュール変更が発生した際にも、忘れず利用者宅を訪問しているか",null,2,1,null,3]
[null,null,null,"休憩時間をしっかり確保しているか",2,null,1,null,3]
[null,null,null,"移動中の車内で、次の訪問のための準備や訪問の振り返り等を行っているか",null,3,null,null,3]
[null,null,"直接ケア周辺業務","どの職員と訪問をした場合でも、質を落とすことなく、サービスを提供できる体制を構築しているか",1,null,2,null,3]
[null,null,null,"法規制や契約内容、計画書に則ったサービスを提供しているか",2,null,null,1,3]
[null,null,null,"利用者及び家族に対して、適切な頻度・手段・内容のコミュニケーションをとっているか",1,null,null,2,3]
[null,null,null,"些細な利用者の情報・変化を意識して、臨機応変な対応の変更をしているか",3,null,null,null,3]
[null,"情報連携","文書作成・記録","事業所では、書類作成にかかるフォーマットを規定しているか",1,null,2,null,3]
[null,null,null,"ICTツール（PC・スマートフォンなど）を不便なく使い、記録を作成しているか",1,1,null,1,3]
[null,null,null,"記録を作成するにあたり、転記作業が生じないよう工夫しているか",null,1,null,2,3]
[null,null,null,"利用者の記録を、必要な時に検索・閲覧することができる仕組みを構築しているか",null,1,2,null,3]
[null,null,"事業所内の連携","利用者に関する申し送り事項を、漏れなく共有しているか",null,1,2,null,3]
[null,null,null,"緊急時に、即時の対応が可能な職員への連絡を行う体制を構築しているか",1,null,1,1,3]
[null,null,null,"事業所へ連絡する内容に応じて、適切な相手・頻度・手段（電話・メール・書類、ICT等）を把握し、実行しているか",null,2,1,null,3]
[null,null,null,"適切なタイミングで、管理者とコミュニケーションを取っているか",2,1,null,null,3]
[null,null,null,"困ったことがあったら、気軽に事業所の同僚・管理者に相談しているか",1,null,2,null,3]
[null,null,null,"リスクマネジメント、ヒヤリハットに関わる情報共有を徹底しているか",null,1,1,1,3]
[null,null,"多職種連携","ケアマネジャーや主治医への伝達内容に応じた適切な連絡頻度・連絡手段（電話・FAX・郵送、ICT等）を把握し、実行しているか",1,1,1,null,3]
[null,null,null,"ケアマネジャーへのサービス実績報告書等について、記載する分量や内容に配慮して作成しているか",null,1,1,1,3]
[null,null,null,"事業所外部へ連絡する内容に応じて、適切な相手・頻度・手段（電話・FAX・郵送、ICT等）を把握し、実行しているか",null,null,1,2,3]
[null,"管理","人員配置","各種間接的業務について、特定の者に依存することなく、適切に役割分担しているか",1,1,1,null,3]
[null,null,null,"急遽職員のシフトに変更が生じた場合でも、支障なくサービス提供できる体制を構築しているか",1,null,1,1,3]
[null,null,"理念浸透","事業所の理念や方針を職員に浸透させる取組をしているか",1,1,1,null,3]
[null,null,"教育・人材育成","各自の業務スキル・効率性に差が出ないよう、実態に即した業務手順書を作成しているか",2,null,1,null,3]
[null,null,null,"スタッフのケアスキル向上のための、研修やワークショップを定期的に実施しているか",null,1,1,1,3]
[null,null,null,"新任の職員に対して効果的なOJTを実施しているか",null,1,1,1,3]
[null,null,"職場環境整備","サービス提供における安全管理の取組を徹底しているか",null,1,1,1,3]
[null,null,null,"物品管理のルールを徹底しているか",null,null,null,3,3]
[null,null,null,"入浴車のメンテナンスについてルールを理解し、適切に実施しているか",null,null,null,3,3]
[null,null,null,"事業所内を常に整理整頓しているか",3,null,null,null,3]
[null,null,null,"業務スペースを常に整理整頓しているか",1,null,1,1,3]
[null,"総計",null,null,31,21,32,27,111]

{"sheet":"課題把握シート_訪問入浴介護","index":2,"n_rows":43,"n_cols":11,"rows_kept":43,"cut":false,"hidden":true,"merged":[[19,0,31,0],[19,1,22,2],[23,1,28,2],[29,1,31,2],[32,0,42,0],[38,1,42,2],[32,1,33,2],[34,1,34,2],[35,1,37,2],[1,6,1,8],[2,6,2,8],[4,3,5,3],[4,4,5,4],[4,5,4,8],[4,9,5,9],[4,0,5,0],[4,1,5,2],[6,0,18,0],[6,1,8,2],[9,1,14,2],[15,1,18,2]]}
[]
[null,null,null,null,null,"記入日"]
[null,null,null,null,null,"氏名"]
[]
["大項目","小項目",null,"#","課題把握の視点","対応の実施",null,null,null,"メモ欄"]
[null,null,null,null,null,"していない","あまりしていない","ややしている","している"]
["サービス提供","訪問・ケア準備",null,1,"ケアに必要な利用者情報（基本情報・ケア計画・利用者の状況等）を把握した上で、利用者宅を訪問しているか",null,null,null,null,null,{"$f":"IF(AND(F7=\"\",G7=\"\",H7=\"\",I7=\"\"),\"1つもチェックされていません\",IF(OR(AND(F7<>\"\",OR(G7<>\"\",H7<>\"\",I7<>\"\")),AND(G7<>\"\",OR(H7<>\"\",I7<>\"\")),AND(H7<>\"\",I7<>\"\")),\"1つだけチェックしてください\",\"\"))","v":"1つもチェックされていません"}]
[null,null,null,2,"一日の訪問/スケジュールを把握し、事業所を出発しているか",null,null,null,null,null,{"$f":"IF(AND(F8=\"\",G8=\"\",H8=\"\",I8=\"\"),\"1つもチェックされていません\",IF(OR(AND(F8<>\"\",OR(G8<>\"\",H8<>\"\",I8<>\"\")),AND(G8<>\"\",OR(H8<>\"\",I8<>\"\")),AND(H8<>\"\",I8<>\"\")),\"1つだけチェックしてください\",\"\"))","v":"1つもチェックされていません"}]
[null,null,null,3,"入浴車への備品の積み込みや後片付けについて、チームで協力して（あるいは、役割を明確にして）実施しているか",null,null,null,null,null,"1つもチェックされていません"]
[null,"移動・訪問スケジュール作成",null,4,"訪問スケジュールを速やかに作成しているか",null,null,null,null,null,"1つもチェックされていません"]
[null,null,null,5,"事業所では効率的な訪問ルート作成の方法・コツを共有しているか",null,null,null,null,null,"1つもチェックされていません"]
[null,null,null,6,"訪問・移動に非効率が生じないよう、適切な訪問ルートを設計しているか",null,null,null,null,null,"1つもチェックされていません"]
[null,null,null,7,"急な訪問スケジュール変更が発生した際にも、忘れず利用者宅を訪問しているか",null,null,null,null,null,"1つもチェックされていません"]
[null,null,null,8,"休憩時間をしっかり確保しているか",null,null,null,null,null,"1つもチェックされていません"]
[null,null,null,9,"移動中の車内で、次の訪問のための準備や訪問の振り返り等を行っているか",null,null,null,null,null,"1つもチェックされていません"]
[null,"直接ケア周辺業務",null,10,"どの職員と訪問をした場合でも、質を落とすことなく、サービスを提供できる体制を構築しているか",null,null,null,null,null,"1つもチェックされていません"]
[null,null,null,11,"法規制や契約内容、計画書に則ったサービスを提供しているか",null,null,null,null,null,"1つもチェックされていません"]
[null,null,null,12,"利用者及び家族に対して、適切な頻度・手段・内容のコミュニケーションをとっているか",null,null,null,null,null,"1つもチェックされていません"]
[null,null,null,13,"些細な利用者の情報・変化を意識して、臨機応変な対応の変更をしているか",null,null,null,null,null,"1つもチェックされていません"]
["情報連携","文書作成・記録",null,14,"事業所では、書類作成にかかるフォーマットを規定しているか",null,null,null,null,null,"1つもチェックされていません"]
[null,null,null,15,"ICTツール（PC・スマートフォンなど）を不便なく使い、記録を作成しているか",null,null,null,null,null,"1つもチェックされていません"]
[null,null,null,16,"記録を作成するにあたり、転記作業が生じないよう工夫しているか",null,null,null,null,null,"1つもチェックされていません"]
[null,null,null,17,"利用者の記録を、必要な時に検索・閲覧することができる仕組みを構築しているか",null,null,null,null,null,"1つもチェックされていません"]
[null,"事業所内の連携",null,18,"利用者に関する申し送り事項を、漏れなく共有しているか",null,null,null,null,null,"1つもチェックされていません"]
[null,null,null,19,"緊急時に、即時の対応が可能な職員への連絡を行う体制を構築しているか",null,null,null,null,null,"1つもチェックされていません"]
[null,null,null,20,"事業所へ連絡する内容に応じて、適切な相手・頻度・手段（電話・メール・書類、ICT等）を把握し、実行しているか",null,null,null,null,null,"1つもチェックされていません"]
[null,null,null,21,"適切なタイミングで、管理者とコミュニケーションを取っているか",null,null,null,null,null,"1つもチェックされていません"]
[null,null,null,22,"困ったことがあったら、気軽に事業所の同僚・管理者に相談しているか",null,null,null,null,null,"1つもチェックされていません"]
[null,null,null,23,"リスクマネジメント、ヒヤリハットに関わる情報共有を徹底しているか",null,null,null,null,null,"1つもチェックされていません"]
[null,"多職種連携",null,24,"ケアマネジャーや主治医への伝達内容に応じた適切な連絡頻度・連絡手段（電話・FAX・郵送、ICT等）を把握し、実行しているか",null,null,null,null,null,"1つもチェックされていません"]
[null,null,null,25,"ケアマネジャーへのサービス実績報告書等について、記載する分量や内容に配慮して作成しているか",null,null,null,null,null,"1つもチェックされていません"]
[null,null,null,26,"事業所外部へ連絡する内容に応じて、適切な相手・頻度・手段（電話・FAX・郵送、ICT等）を把握し、実行しているか",null,null,null,null,null,"1つもチェックされていません"]
["管理","人員配置",null,27,"各種間接的業務について、特定の者に依存することなく、適切に役割分担しているか",null,null,null,null,null,"1つもチェックされていません"]
[null,null,null,28,"急遽職員のシフトに変更が生じた場合でも、支障なくサービス提供できる体制を構築しているか",null,null,null,null,null,"1つもチェックされていません"]
[null,"理念浸透",null,29,"事業所の理念や方針を職員に浸透させる取組をしているか",null,null,null,null,null,"1つもチェックされていません"]
[null,"教育・人材育成",null,30,"各自の業務スキル・効率性に差が出ないよう、実態に即した業務手順書を作成しているか",null,null,null,null,null,"1つもチェックされていません"]
[null,null,null,31,"スタッフのケアスキル向上のための、研修やワークショップを定期的に実施しているか",null,null,null,null,null,"1つもチェックされていません"]
[null,null,null,32,"新任の職員に対して効果的なOJTを実施しているか",null,null,null,null,null,{"$f":"IF(AND(F38=\"\",G38=\"\",H38=\"\",I38=\"\"),\"1つもチェックされていません\",IF(OR(AND(F38<>\"\",OR(G38<>\"\",H38<>\"\",I38<>\"\")),AND(G38<>\"\",OR(H38<>\"\",I38<>\"\")),AND(H38<>\"\",I38<>\"\")),\"1つだけチェックしてください\",\"\"))","v":"1つもチェックされていません"}]
[null,"職場環境整備",null,33,"サービス提供における安全管理の取組を徹底しているか",null,null,null,null,null,"1つもチェックされていません"]
[null,null,null,34,"物品管理のルールを徹底しているか",null,null,null,null,null,"1つもチェックされていません"]
[null,null,null,35,"入浴車のメンテナンスについてルールを理解し、適切に実施しているか",null,null,null,null,null,"1つもチェックされていません"]
[null,null,null,36,"事業所内を常に整理整頓しているか",null,null,null,null,null,"1つもチェックされていません"]
[null,null,null,37,"業務スペースを常に整理整頓しているか",null,null,null,null,null,{"$f":"IF(AND(F43=\"\",G43=\"\",H43=\"\",I43=\"\"),\"1つもチェックされていません\",IF(OR(AND(F43<>\"\",OR(G43<>\"\",H43<>\"\",I43<>\"\")),AND(G43<>\"\",OR(H43<>\"\",I43<>\"\")),AND(H43<>\"\",I43<>\"\")),\"1つだけチェックしてください\",\"\"))","v":"1つもチェックされていません"}]

{"sheet":"集計データシート","index":3,"n_rows":112,"n_cols":5,"rows_kept":112,"cut":false,"hidden":true,"merged":[]}
["大項目","中項目","小項目","課題把握の視点","点数"]
["サービス提供",null,"訪問・ケア準備","ケアに必要な利用者情報（基本情報・ケア計画・利用者の状況等）を把握した上で、利用者宅を訪問しているか",0]
["サービス提供",null,"訪問・ケア準備","一日の訪問/スケジュールを把握し、事業所を出発しているか",3]
["サービス提供",null,"訪問・ケア準備","入浴車への備品の積み込みや後片付けについて、チームで協力して（あるいは、役割を明確にして）実施しているか",3]
["サービス提供",null,"移動・訪問スケジュール作成","訪問スケジュールを速やかに作成しているか",2]
["サービス提供",null,"移動・訪問スケジュール作成","事業所では効率的な訪問ルート作成の方法・コツを共有しているか",0]
["サービス提供",null,"移動・訪問スケジュール作成","訪問・移動に非効率が生じないよう、適切な訪問ルートを設計しているか",3]
["サービス提供",null,"移動・訪問スケジュール作成","急な訪問スケジュール変更が発生した際にも、忘れず利用者宅を訪問しているか",1]
["サービス提供",null,"移動・訪問スケジュール作成","休憩時間をしっかり確保しているか",0]
["サービス提供",null,"移動・訪問スケジュール作成","移動中の車内で、次の訪問のための準備や訪問の振り返り等を行っているか",1]
["サービス提供",null,"直接ケア周辺業務","どの職員と訪問をした場合でも、質を落とすことなく、サービスを提供できる体制を構築しているか",2]
["サービス提供",null,"直接ケア周辺業務","法規制や契約内容、計画書に則ったサービスを提供しているか",0]
["サービス提供",null,"直接ケア周辺業務","利用者及び家族に対して、適切な頻度・手段・内容のコミュニケーションをとっているか",3]
["サービス提供",null,"直接ケア周辺業務","些細な利用者の情報・変化を意識して、臨機応変な対応の変更をしているか",0]
["情報連携",null,"文書作成・記録","事業所では、書類作成にかかるフォーマットを規定しているか",2]
["情報連携",null,"文書作成・記録","ICTツール（PC・スマートフォンなど）を不便なく使い、記録を作成しているか",3]
["情報連携",null,"文書作成・記録","記録を作成するにあたり、転記作業が生じないよう工夫しているか",3]
["情報連携",null,"文書作成・記録","利用者の記録を、必要な時に検索・閲覧することができる仕組みを構築しているか",2]
["情報連携",null,"事業所内の連携","利用者に関する申し送り事項を、漏れなく共有しているか",2]
["情報連携",null,"事業所内の連携","緊急時に、即時の対応が可能な職員への連絡を行う体制を構築しているか",2]
["情報連携",null,"事業所内の連携","事業所へ連絡する内容に応じて、適切な相手・頻度・手段（電話・メール・書類、ICT等）を把握し、実行しているか",1]
["情報連携",null,"事業所内の連携","適切なタイミングで、管理者とコミュニケーションを取っているか",0]
["情報連携",null,"事業所内の連携","困ったことがあったら、気軽に事業所の同僚・管理者に相談しているか",0]
["情報連携",null,"事業所内の連携","リスクマネジメント、ヒヤリハットに関わる情報共有を徹底しているか",1]
["情報連携",null,"多職種連携","ケアマネジャーや主治医への伝達内容に応じた適切な連絡頻度・連絡手段（電話・FAX・郵送、ICT等）を把握し、実行しているか",2]
["情報連携",null,"多職種連携","ケアマネジャーへのサービス実績報告書等について、記載する分量や内容に配慮して作成しているか",3]
["情報連携",null,"多職種連携","事業所外部へ連絡する内容に応じて、適切な相手・頻度・手段（電話・FAX・郵送、ICT等）を把握し、実行しているか",2]
["管理",null,"人員配置","各種間接的業務について、特定の者に依存することなく、適切に役割分担しているか",2]
["管理",null,"人員配置","急遽職員のシフトに変更が生じた場合でも、支障なくサービス提供できる体制を構築しているか",3]
["管理",null,"理念浸透","事業所の理念や方針を職員に浸透させる取組をしているか",1]
["管理",null,"教育・人材育成","各自の業務スキル・効率性に差が出ないよう、実態に即した業務手順書を作成しているか",2]
["管理",null,"教育・人材育成","スタッフのケアスキル向上のための、研修やワークショップを定期的に実施しているか",2]
["管理",null,"教育・人材育成","新任の職員に対して効果的なOJTを実施しているか",3]
["管理",null,"職場環境整備","サービス提供における安全管理の取組を徹底しているか",3]
["管理",null,"職場環境整備","物品管理のルールを徹底しているか",3]
["管理",null,"職場環境整備","入浴車のメンテナンスについてルールを理解し、適切に実施しているか",3]
["管理",null,"職場環境整備","事業所内を常に整理整頓しているか",0]
["管理",null,"職場環境整備","業務スペースを常に整理整頓しているか",3]
["サービス提供",null,"訪問・ケア準備","ケアに必要な利用者情報（基本情報・ケア計画・利用者の状況等）を把握した上で、利用者宅を訪問しているか",3]
["サービス提供",null,"訪問・ケア準備","一日の訪問/スケジュールを把握し、事業所を出発しているか",2]
["サービス提供",null,"訪問・ケア準備","入浴車への備品の積み込みや後片付けについて、チームで協力して（あるいは、役割を明確にして）実施しているか",0]
["サービス提供",null,"移動・訪問スケジュール作成","訪問スケジュールを速やかに作成しているか",2]
["サービス提供",null,"移動・訪問スケジュール作成","事業所では効率的な訪問ルート作成の方法・コツを共有しているか",2]
["サービス提供",null,"移動・訪問スケジュール作成","訪問・移動に非効率が生じないよう、適切な訪問ルートを設計しているか",2]
["サービス提供",null,"移動・訪問スケジュール作成","急な訪問スケジュール変更が発生した際にも、忘れず利用者宅を訪問しているか",2]
["サービス提供",null,"移動・訪問スケジュール作成","休憩時間をしっかり確保しているか",0]
["サービス提供",null,"移動・訪問スケジュール作成","移動中の車内で、次の訪問のための準備や訪問の振り返り等を行っているか",1]
["サービス提供",null,"直接ケア周辺業務","どの職員と訪問をした場合でも、質を落とすことなく、サービスを提供できる体制を構築しているか",2]
["サービス提供",null,"直接ケア周辺業務","法規制や契約内容、計画書に則ったサービスを提供しているか",0]
["サービス提供",null,"直接ケア周辺業務","利用者及び家族に対して、適切な頻度・手段・内容のコミュニケーションをとっているか",3]
["サービス提供",null,"直接ケア周辺業務","些細な利用者の情報・変化を意識して、臨機応変な対応の変更をしているか",0]
["情報連携",null,"文書作成・記録","事業所では、書類作成にかかるフォーマットを規定しているか",2]
["情報連携",null,"文書作成・記録","ICTツール（PC・スマートフォンなど）を不便なく使い、記録を作成しているか",1]
["情報連携",null,"文書作成・記録","記録を作成するにあたり、転記作業が生じないよう工夫しているか",3]
["情報連携",null,"文書作成・記録","利用者の記録を、必要な時に検索・閲覧することができる仕組みを構築しているか",1]
["情報連携",null,"事業所内の連携","利用者に関する申し送り事項を、漏れなく共有しているか",1]
["情報連携",null,"事業所内の連携","緊急時に、即時の対応が可能な職員への連絡を行う体制を構築しているか",0]
["情報連携",null,"事業所内の連携","事業所へ連絡する内容に応じて、適切な相手・頻度・手段（電話・メール・書類、ICT等）を把握し、実行しているか",1]
["情報連携",null,"事業所内の連携","適切なタイミングで、管理者とコミュニケーションを取っているか",1]
["情報連携",null,"事業所内の連携","困ったことがあったら、気軽に事業所の同僚・管理者に相談しているか",2]
["情報連携",null,"事業所内の連携","リスクマネジメント、ヒヤリハットに関わる情報共有を徹底しているか",3]
["情報連携",null,"多職種連携","ケアマネジャーや主治医への伝達内容に応じた適切な連絡頻度・連絡手段（電話・FAX・郵送、ICT等）を把握し、実行しているか",1]
["情報連携",null,"多職種連携","ケアマネジャーへのサービス実績報告書等について、記載する分量や内容に配慮して作成しているか",2]
["情報連携",null,"多職種連携","事業所外部へ連絡する内容に応じて、適切な相手・頻度・手段（電話・FAX・郵送、ICT等）を把握し、実行しているか",3]
["管理",null,"人員配置","各種間接的業務について、特定の者に依存することなく、適切に役割分担しているか",0]
["管理",null,"人員配置","急遽職員のシフトに変更が生じた場合でも、支障なくサービス提供できる体制を構築しているか",0]
["管理",null,"理念浸透","事業所の理念や方針を職員に浸透させる取組をしているか",2]
["管理",null,"教育・人材育成","各自の業務スキル・効率性に差が出ないよう、実態に即した業務手順書を作成しているか",0]
["管理",null,"教育・人材育成","スタッフのケアスキル向上のための、研修やワークショップを定期的に実施しているか",3]
["管理",null,"教育・人材育成","新任の職員に対して効果的なOJTを実施しているか",1]
["管理",null,"職場環境整備","サービス提供における安全管理の取組を徹底しているか",2]
["管理",null,"職場環境整備","物品管理のルールを徹底しているか",3]
["管理",null,"職場環境整備","入浴車のメンテナンスについてルールを理解し、適切に実施しているか",3]
["管理",null,"職場環境整備","事業所内を常に整理整頓しているか",0]
["管理",null,"職場環境整備","業務スペースを常に整理整頓しているか",2]
["サービス提供",null,"訪問・ケア準備","ケアに必要な利用者情報（基本情報・ケア計画・利用者の状況等）を把握した上で、利用者宅を訪問しているか",2]
["サービス提供",null,"訪問・ケア準備","一日の訪問/スケジュールを把握し、事業所を出発しているか",0]
["サービス提供",null,"訪問・ケア準備","入浴車への備品の積み込みや後片付けについて、チームで協力して（あるいは、役割を明確にして）実施しているか",0]
["サービス提供",null,"移動・訪問スケジュール作成","訪問スケジュールを速やかに作成しているか",1]
["サービス提供",null,"移動・訪問スケジュール作成","事業所では効率的な訪問ルート作成の方法・コツを共有しているか",0]
["サービス提供",null,"移動・訪問スケジュール作成","訪問・移動に非効率が生じないよう、適切な訪問ルートを設計しているか",3]
["サービス提供",null,"移動・訪問スケジュール作成","急な訪問スケジュール変更が発生した際にも、忘れず利用者宅を訪問しているか",1]
["サービス提供",null,"移動・訪問スケジュール作成","休憩時間をしっかり確保しているか",2]
["サービス提供",null,"移動・訪問スケジュール作成","移動中の車内で、次の訪問のための準備や訪問の振り返り等を行っているか",1]
["サービス提供",null,"直接ケア周辺業務","どの職員と訪問をした場合でも、質を落とすことなく、サービスを提供できる体制を構築しているか",0]
["サービス提供",null,"直接ケア周辺業務","法規制や契約内容、計画書に則ったサービスを提供しているか",3]
["サービス提供",null,"直接ケア周辺業務","利用者及び家族に対して、適切な頻度・手段・内容のコミュニケーションをとっているか",0]
["サービス提供",null,"直接ケア周辺業務","些細な利用者の情報・変化を意識して、臨機応変な対応の変更をしているか",0]
["情報連携",null,"文書作成・記録","事業所では、書類作成にかかるフォーマットを規定しているか",0]
["情報連携",null,"文書作成・記録","ICTツール（PC・スマートフォンなど）を不便なく使い、記録を作成しているか",0]
["情報連携",null,"文書作成・記録","記録を作成するにあたり、転記作業が生じないよう工夫しているか",1]
["情報連携",null,"文書作成・記録","利用者の記録を、必要な時に検索・閲覧することができる仕組みを構築しているか",2]
["情報連携",null,"事業所内の連携","利用者に関する申し送り事項を、漏れなく共有しているか",2]
["情報連携",null,"事業所内の連携","緊急時に、即時の対応が可能な職員への連絡を行う体制を構築しているか",3]
["情報連携",null,"事業所内の連携","事業所へ連絡する内容に応じて、適切な相手・頻度・手段（電話・メール・書類、ICT等）を把握し、実行しているか",2]
["情報連携",null,"事業所内の連携","適切なタイミングで、管理者とコミュニケーションを取っているか",0]
["情報連携",null,"事業所内の連携","困ったことがあったら、気軽に事業所の同僚・管理者に相談しているか",2]
["情報連携",null,"事業所内の連携","リスクマネジメント、ヒヤリハットに関わる情報共有を徹底しているか",2]
["情報連携",null,"多職種連携","ケアマネジャーや主治医への伝達内容に応じた適切な連絡頻度・連絡手段（電話・FAX・郵送、ICT等）を把握し、実行しているか",0]
["情報連携",null,"多職種連携","ケアマネジャーへのサービス実績報告書等について、記載する分量や内容に配慮して作成しているか",1]
["情報連携",null,"多職種連携","事業所外部へ連絡する内容に応じて、適切な相手・頻度・手段（電話・FAX・郵送、ICT等）を把握し、実行しているか",3]
["管理",null,"人員配置","各種間接的業務について、特定の者に依存することなく、適切に役割分担しているか",1]
["管理",null,"人員配置","急遽職員のシフトに変更が生じた場合でも、支障なくサービス提供できる体制を構築しているか",2]
["管理",null,"理念浸透","事業所の理念や方針を職員に浸透させる取組をしているか",0]
["管理",null,"教育・人材育成","各自の業務スキル・効率性に差が出ないよう、実態に即した業務手順書を作成しているか",0]
["管理",null,"教育・人材育成","スタッフのケアスキル向上のための、研修やワークショップを定期的に実施しているか",1]
["管理",null,"教育・人材育成","新任の職員に対して効果的なOJTを実施しているか",2]
["管理",null,"職場環境整備","サービス提供における安全管理の取組を徹底しているか",1]
["管理",null,"職場環境整備","物品管理のルールを徹底しているか",3]
["管理",null,"職場環境整備","入浴車のメンテナンスについてルールを理解し、適切に実施しているか",3]
["管理",null,"職場環境整備","事業所内を常に整理整頓しているか",0]
["管理",null,"職場環境整備","業務スペースを常に整理整頓しているか",0]

{"sheet":"平均点","index":4,"n_rows":43,"n_cols":2,"rows_kept":43,"cut":false,"hidden":true,"merged":[]}
[]
[]
[]
["行ラベル","平均 / 点数"]
["ケアに必要な利用者情報（基本情報・ケア計画・利用者の状況等）を把握した上で、利用者宅を訪問しているか",1.6666666666666667]
["ケアマネジャーへのサービス実績報告書等について、記載する分量や内容に配慮して作成しているか",2]
["スタッフのケアスキル向上のための、研修やワークショップを定期的に実施しているか",2]
["各自の業務スキル・効率性に差が出ないよう、実態に即した業務手順書を作成しているか",0.66666666666666663]
["記録を作成するにあたり、転記作業が生じないよう工夫しているか",2.3333333333333335]
["休憩時間をしっかり確保しているか",0.66666666666666663]
["急な訪問スケジュール変更が発生した際にも、忘れず利用者宅を訪問しているか",1.3333333333333333]
["業務スペースを常に整理整頓しているか",1.6666666666666667]
["緊急時に、即時の対応が可能な職員への連絡を行う体制を構築しているか",1.6666666666666667]
["困ったことがあったら、気軽に事業所の同僚・管理者に相談しているか",1.3333333333333333]
["事業所内を常に整理整頓しているか",0]
["新任の職員に対して効果的なOJTを実施しているか",2]
["適切なタイミングで、管理者とコミュニケーションを取っているか",0.33333333333333331]
["物品管理のルールを徹底しているか",3]
["法規制や契約内容、計画書に則ったサービスを提供しているか",1]
["訪問・移動に非効率が生じないよう、適切な訪問ルートを設計しているか",2.6666666666666665]
["訪問スケジュールを速やかに作成しているか",1.6666666666666667]
["利用者に関する申し送り事項を、漏れなく共有しているか",1.6666666666666667]
["利用者の記録を、必要な時に検索・閲覧することができる仕組みを構築しているか",1.6666666666666667]
["利用者及び家族に対して、適切な頻度・手段・内容のコミュニケーションをとっているか",2]
["(空白)"]
["ケアマネジャーや主治医への伝達内容に応じた適切な連絡頻度・連絡手段（電話・FAX・郵送、ICT等）を把握し、実行しているか",1]
["急遽職員のシフトに変更が生じた場合でも、支障なくサービス提供できる体制を構築しているか",1.6666666666666667]
["ICTツール（PC・スマートフォンなど）を不便なく使い、記録を作成しているか",1.3333333333333333]
["事業所へ連絡する内容に応じて、適切な相手・頻度・手段（電話・メール・書類、ICT等）を把握し、実行しているか",1.3333333333333333]
["事業所外部へ連絡する内容に応じて、適切な相手・頻度・手段（電話・FAX・郵送、ICT等）を把握し、実行しているか",2.6666666666666665]
["各種間接的業務について、特定の者に依存することなく、適切に役割分担しているか",1]
["一日の訪問/スケジュールを把握し、事業所を出発しているか",1.6666666666666667]
["入浴車への備品の積み込みや後片付けについて、チームで協力して（あるいは、役割を明確にして）実施しているか",1]
["事業所では効率的な訪問ルート作成の方法・コツを共有しているか",0.66666666666666663]
["移動中の車内で、次の訪問のための準備や訪問の振り返り等を行っているか",1]
["どの職員と訪問をした場合でも、質を落とすことなく、サービスを提供できる体制を構築しているか",1.3333333333333333]
["些細な利用者の情報・変化を意識して、臨機応変な対応の変更をしているか",0]
["事業所では、書類作成にかかるフォーマットを規定しているか",1.3333333333333333]
["リスクマネジメント、ヒヤリハットに関わる情報共有を徹底しているか",2]
["事業所の理念や方針を職員に浸透させる取組をしているか",1]
["サービス提供における安全管理の取組を徹底しているか",2]
["入浴車のメンテナンスについてルールを理解し、適切に実施しているか",3]
["総計",1.4954954954954955]